{"text_format":"1","workbook":"xlsx","n_sheets":2,"sheets":["Ration Request","Day 14 Practical "],"not_rendered":{"charts":0,"images":0,"macros":1,"external_links":0,"defined_names":4,"comments":0,"pivot_tables":0},"unopened":[],"bounds":{"document_bytes":16777216,"sheet_cells":100000,"rows_first":2000,"rows_last":500,"rows_between":2000,"halvings":0,"cell_chars":16384,"cell_head_chars":4096},"cells_cut":0,"cells_raw":0,"read":"whole","date_system":"1900"}

{"sheet":"Ration Request","index":0,"n_rows":332,"n_cols":10,"rows_kept":332,"cut":false,"hidden":false,"merged":[[0,0,0,2],[1,0,1,2],[2,0,2,2],[4,0,4,2],[1,8,1,9],[7,5,7,6],[9,2,9,6],[198,2,198,6],[306,2,306,6],[31,2,31,6],[47,1,47,2],[47,4,47,6],[64,1,64,4],[64,5,64,6]]}
["44th Annual Joint Culinary Training Exercise (JCTE) 6 - 15 March 2019"]
[null,null,null,null,null,null,null,null,"U/I"]
["Order Requisition",null,null,null,"ENTER INDIVIDUAL NAME HERE",null,null,null,"Gal","Gallon"]
[null,null,null,null,null,null,null,null,"EA","Each"]
[" 2019 JCTE REQUEST FORM/TEAM NAME ENTERED HERE",null,null,null,"ENTER CATEGORY HERE (as well as left side)",null,null,null,"Bx","Box"]
[null,null,null,null,null,null,null,null,"CN","Can"]
[null,null,null,null,null,null,null,null,"Cs","Case"]
[null,null,null,null,null,"Do Not Use",null,null,"Oz","Ounce"]
["CAT","INGREDIENT","AMT","U/I","EXPLAIN PRODUCT IF NEEDED/SPECIFY","ORD","REC",null,"PK","Packs"]
[null,"Meats and Poultry"]
[null,"Beef RibEye (112A) Lip on (17lb avg) #4424826",null,"LB"]
[null,"Beef Short Rib Boneless (130A) #553248",null,"LB"]
[null,"Beef Tenderloin (189A) (8lb avg) #8350092",null,"LB"]
[null,"Beef, Flank Steak (193) (8lb avg) #8353591",null,"LB"]
[null,"Beef, Ground (10lb) - AFMIS",null,"LB"]
[null,"Chicken, Whole (3.5lb avg) (P1002) #1383561",null,"EA"]
[null,"Cornish Game Hen whole - AFMIS",null,"EA"]
[null,"Duckling, Whole (5lb avg) (P3000) #5022157",null,"EA"]
[null,"Lamb Rack Split 4\" (204B) Bone in #9826819",null,"LB"]
[null,"Lamb Loin Bone in  (2.5lb avg) (232A) #4835922",null,"LB"]
[null,"Pork Bacon Sliced - AFMIS",null,"LB"]
[null,"Pork Butt / Shoulder (406) #8611659",null,"LB"]
[null,"Pork Country Ham Bone-in (15lb avg) #1370154",null,"EA"]
[null,"Pork Loin (412E) (8lb avg) - AFMIS",null,"LB"]
[null,"Pork Loin Bone-in 11rib (412D) # 7996267",null,"LB"]
[null,"Pork Prosciutto Sliced #8526113",null,"LB"]
[null,"Pork Tenderloin (415) 1lb avg) #6637065",null,"LB"]
[null,"Quail Whole Semi boneless 4oz # 8505588",{"$f":"IF(I26=0,\"\",#REF!*I26)","v":""},"EA"]
[null,"Turkey, Whole (24lb avg) AFMIS",{"$f":"IF(I28=0,\"\",#REF!*I28)","v":""},"EA"]
[null,"Veal, strip loin boneless (5lb avg) (344) #6681118",null,"LB"]
[]
[null,"Fish and Seafood"]
[null,"Clams, Littleneck",{"$f":"IF(I35=0,\"\",#REF!*I35)","v":""},"LB"]
[null,"Cod, Whole",{"$f":"IF(I36=0,\"\",#REF!*I36)","v":""},"EA"]
[null,"Crab Lump Meat",null,"CN"]
[null,"Crab, King",null,"LB"]
[null,"Dover Sole",null,"EA"]
[null,"Turbot, Whole",{"$f":"IF(I39=0,\"\",#REF!*I39)","v":""},"EA"]
[null,"Mussels, Fresh",{"$f":"IF(I40=0,\"\",#REF!*I40)","v":""},"LB"]
[null,"Red Snapper, Whole",null,"EA"]
[null,"Salmon, Filet",{"$f":"IF(I42=0,\"\",#REF!*I42)","v":""},"LB"]
[null,"Salmon, Whole",null,"EA"]
[null,"Scallops, Sea U10 / U20 (Select Size)",{"$f":"IF(I45=0,\"\",#REF!*I45)","v":""},"LB"]
[null,"Sea Bass, Whole",{"$f":"IF(I46=0,\"\",#REF!*I46)","v":""},"EA"]
[null,"Shelf-Stable Caviar (Controlled Item)",{"$f":"IF(I47=0,\"\",#REF!*I47)","v":""},"LB"]
[null,"Shrimp, Annotate Size and Type",null,"LB"]
[null,"Trout, Rainbow Whole",{"$f":"IF(I53=0,\"\",#REF!*I53)","v":""},"EA"]
[null,"Special Order Items"]
[null,"Couverture Chocolate, Dark 64% #7917925",{"$f":"IF(I55=0,\"\",#REF!*I55)","v":""},"LB"]
[null,"Couverture Chocolate, White 34% #7917966",{"$f":"IF(I110=0,\"\",#REF!*I110)","v":""},"LB"]
[null,"Firm Tofu #1402932",{"$f":"IF(I111=0,\"\",#REF!*I111)","v":""},"LB"]
[null,"Fondant white rolled 10lb, #7753627",{"$f":"IF(I56=0,\"\",#REF!*I56)","v":""},"Co"]
[null,"Glucose syrup 10lb, #2693090",{"$f":"IF(I58=0,\"\",#REF!*I58)","v":""},"Co"]
[null,"Glycerin Flakes 1lb, #2674026",{"$f":"IF(I64=0,\"\",#REF!*I64)","v":""},"Co"]
[null,"Great Lakes Gelatin Powder, #6699094",null,"Co"]
[null,"Isomalt 11lb Container, #5555362",{"$f":"IF(I65=0,\"\",#REF!*I65)","v":""},"Co"]
[null,"Marzipan 8lb, #1757319",null,"LB"]
[null,"Milk Chocolate 40% #7917958",{"$f":"IF(I67=0,\"\",#REF!*I67)","v":""},"LB"]
[null,"Phyllo Sheets 1lb, #3051109",null,"Co"]
[null,"Bric dough 10ea, #8863540",null,"Co"]
[null,"Puff Pastry - (Sheets #6427700) or (Squares AFMIS)",null,"LB"]
[null,"Sheet Gelatin 400ea, #5553862",null,"Co"]
[null,"Dark Chocolate 38%, #8751728",null,"LB"]
[null,"Wonton Wrapper small squares 24pk, #1741841",null,"PK"]
[null,"Dry Goods"]
[null,"Arborio Rice #2331486",null,"LB"]
[null,"Almond Flour, #3437438",null,"LB"]
[null,"Almond Oil 1lt, #15156",null,"OZ"]
[null,"Almonds, (Whole #1744085) / (Sliver AFMIS) specify",null,"LB"]
[null,"Apple Cider Vinegar #4328332",{"$f":"IF(I78=0,\"\",#REF!*I78)","v":""},"Gal"]
[null,"Artichoke Hearts  8-10count, #9333576",null,"CN"]
[null,"Avocado Oil, #1751858",null,"Oz"]
[null,"Baking Powder AFMIS",null,"Co"]
[null,"Balsamic Vinegar, #9519463",{"$f":"IF(I81=0,\"\",#REF!*I81)","v":""},"Gal"]
[null,"Banana Peppers 1gal, AFMIS ",null,"Co"]
[null,"Barley,  Pearl 2lb, #9698069 ",{"$f":"IF(I82=0,\"\",#REF!*I82)","v":""},"LB"]
[null,"Base, Beef AFMIS",null,"CO"]
[null,"Base, Chicken AFMIS",{"$f":"IF(I83=0,\"\",#REF!*I83)","v":""},"CO"]
[null,"Bay Leaves, Whole Dry AFMIS",null,"CO"]
[null,"Black Beans - Dry or Canned (Select Type)",null,"LB"]
[null,"Black Olives - Whole or Sliced, Canned",{"$f":"IF(I86=0,\"\",#REF!*I86)","v":""},"CN"]
[null,"Black Pepper AFMIS",{"$f":"IF(I87=0,\"\",#REF!*I87)","v":""},"Co"]
[null,"Black Peppercorns, #760439",{"$f":"IF(I88=0,\"\",#REF!*I88)","v":""},"Co"]
[null,"Black Sesame Seeds, #6501225",null,"Co"]
[null,"Black Truffle Oil, 250ml, #4922621",null,"OZ"]
[null,"Bread Crumbs, Panko AFMIS",{"$f":"IF(I90=0,\"\",#REF!*I90)","v":""},"LB"]
[null,"Bread Crumbs, Regular AFMIS",null,"LB"]
[null,"Cake Flour,  #3008364",null,"LB"]
[null,"Calrose Rice, short grain, #1106012",null,"LB"]
[null,"Chili Powder, AFMIS",null,"CO"]
[null,"Chocolate Chips, AFMIS",{"$f":"IF(I95=0,\"\",#REF!*I95)","v":""},"LB"]
[null,"Cloves (Specify Ground or Whole), AFMIS",{"$f":"IF(I96=0,\"\",#REF!*I96)","v":""},"CO"]
[null,"Cocoa Powder, AFMIS",{"$f":"IF(I97=0,\"\",#REF!*I97)","v":""},"LB"]
[null,"Coconut Milk unsweet 1qt, #8435355",null,"OZ"]
[null,"Coconut Oil 30oz, #3518879",{"$f":"IF(I98=0,\"\",#REF!*I98)","v":""},"OZ"]
[null,"Cooking Wine, Burgundy 1gl, #3495900",{"$f":"IF(I104=0,\"\",#REF!*I104)","v":""},"Gal"]
[null,"Cooking Wine, Marsala 1gl, #6414692",{"$f":"IF(I105=0,\"\",#REF!*I105)","v":""},"Gal"]
[null,"Cooking Wine, Rice Vinegar 1gl, #7267545",{"$f":"IF(I106=0,\"\",#REF!*I106)","v":""},"Gal"]
[null,"Cooking Wine, Sherry 1gl, #1002104",null,"Gal"]
[null,"Cooking Wine, White 1gl, #3422839",null,"Gal"]
[null,"Corianders (Container / Ounce)",null,"CO"]
[null,"Corn Flour, #2170785",null,"LB"]
[null,"Cornmeal, AFMIS",{"$f":"IF(I50=0,\"\",#REF!*I50)","v":""},"LB"]
[null,"Cornstarch, AFMIS",{"$f":"IF(I51=0,\"\",#REF!*I51)","v":""},"LB"]
[null,"Cous Cous, #4544623",null,"LB"]
[null,"Cream of Tar Tar, #760207",{"$f":"IF(I109=0,\"\",#REF!*I109)","v":""},"CO"]
[null,"Crushed Red Pepper, AFMIS",null,"CO"]
[null,"Curry Powder, AFMIS",null,"Co"]
[null,"Dill Seed, whole, #2550879",{"$f":"IF(I113=0,\"\",#REF!*I113)","v":""},"Co"]
[null,"Dill Weed, Dry, AFMIS",{"$f":"IF(I114=0,\"\",#REF!*I114)","v":""},"Co"]
[null,"Dried Bing Cherries, #7544331",{"$f":"IF(I115=0,\"\",#REF!*I115)","v":""},"LB"]
[null,"Dried Blueberries, #22988",null,"LB"]
[null,"Dried Cranberries, AFMIS",{"$f":"IF(I116=0,\"\",#REF!*I116)","v":""},"LB"]
[null,"Dried Tart Cherries, #2544336",{"$f":"IF(I118=0,\"\",#REF!*I118)","v":""},"LB"]
[null,"Dried Tomato Halves, #8348096",null,"LB"]
[null,"Evaporated Milk 12oz, #827451",null,"CN"]
[null,"Extra Virgin Olive Oil, AFMIS",null,"Gal"]
[null,"Fish Sauce 24oz, #6801609",null,"Oz"]
[null,"Flour Whole Wheat, AFMIS",{"$f":"IF(I122=0,\"\",#REF!*I122)","v":""},"LB"]
[null,"Flour, White, A.P., AFMIS",null,"LB"]
[null,"Granulated Garlic, AFMIS",null,"CO"]
[null,"Granulated Onion, #760371",{"$f":"IF(I124=0,\"\",#REF!*I124)","v":""},"CO"]
[null,"Grape Seed Oil 1gal, #16295",{"$f":"IF(I125=0,\"\",#REF!*I125)","v":""},"GAL"]
[null,"Green Olives, AFMIS",{"$f":"IF(I128=0,\"\",#REF!*I128)","v":""},"LB"]
[null,"Ground Allspice, AFMIS",{"$f":"IF(I129=0,\"\",#REF!*I129)","v":""},"Co"]
[null,"Ground Cinnamon, AFMIS",{"$f":"IF(I130=0,\"\",#REF!*I130)","v":""},"CO"]
[null,"Ground Cumin, AFMIS",{"$f":"IF(I131=0,\"\",#REF!*I131)","v":""},"Co"]
[null,"Ground Ginger, AFMIS",null,"Co"]
[null,"Ground Mustard, #760348",{"$f":"IF(I132=0,\"\",#REF!*I132)","v":""},"Co"]
[null,"Ground Nutmeg, AFMIS",{"$f":"IF(I134=0,\"\",#REF!*I134)","v":""},"Co"]
[null,"Ground Thyme, AFMIS",{"$f":"IF(I135=0,\"\",#REF!*I135)","v":""},"Co"]
[null,"Agave Nectar 1lt, #6649289",null,"Co"]
[null,"Gum Paste 1lb, #2673671",null,"Co"]
[null,"Ham Base, #8523193",null,"CO"]
[null,"Hazelnut Oil 1lt, #15172",{"$f":"IF(I137=0,\"\",#REF!*I137)","v":""},"OZ"]
[null,"Hazelnuts Whole #5298492",null,"LB"]
[null,"Horseradish prepared, AFMIS",{"$f":"IF(I140=0,\"\",#REF!*I140)","v":""},"OZ"]
[null,"Instant Coffee, AFMIS",{"$f":"IF(I145=0,\"\",#REF!*I145)","v":""},"Oz"]
[null,"Instant NF Dry Milk, AFMIS",null,"Oz"]
[null,"Juniper Berries, #6517825",null,"OZ"]
[null,"Key Lime Juice, #8600942",null,"OZ"]
[null,"Kosher Salt Fine, #773473 ",null,"CO"]
[null,"Lentils green, #1544303",null,"LB"]
[null,"Light Chili Powder, AFMIS",null,"CO"]
[null,"Liquid Smoke 1gl, #5190475",null,"OZ"]
[null,"Macadamia Nut, Whole, #7411820",null,"LB"]
[null,"Mayonnaise, AFMIS",null,"Oz"]
[null,"Mirin 60oz,  #1192597",null,"OZ"]
[null,"Mixed Nuts, AFMIS",{"$f":"IF(I153=0,\"\",#REF!*I153)","v":""},"LB"]
[null,"Navy Beans Dry, AFMIS",null,"LB"]
[null,"Olives, Kalamata, #9336199",{"$f":"IF(I155=0,\"\",#REF!*I155)","v":""},"LB"]
[null,"Onion Powder, AFMIS",{"$f":"IF(I159=0,\"\",#REF!*I159)","v":""},"CO"]
[null,"Onion Salt, #2032951",{"$f":"IF(I160=0,\"\",#REF!*I160)","v":""},"Co"]
[null,"Oregano Leaves Dry, #760850",null,"Co"]
[null,"Oyster Sauce 14oz, #1658285",{"$f":"IF(I161=0,\"\",#REF!*I161)","v":""},"Oz"]
[null,"Paprika, AFMIS",null,"Co"]
[null,"Peanut Oil frying, #7328693",null,"GAL"]
[null,"Pepper, White Ground, AFMIS",null,"CO"]
[null,"Peppercorn Medley, #3429669",null,"CO"]
[null,"Pickling Spice, #760645",{"$f":"IF(I162=0,\"\",#REF!*I162)","v":""},"CO"]
[null,"Pine Nuts, #9195827",{"$f":"IF(I164=0,\"\",#REF!*I164)","v":""},"LB"]
[null,"Pinto Beans, Canned, AFMIS",{"$f":"IF(I165=0,\"\",#REF!*I165)","v":""},"CN"]
[null,"Pistachios, #3594975",null,"LB"]
[null,"Poultry Seasoning, AFMIS",{"$f":"IF(I166=0,\"\",#REF!*I166)","v":""},"Co"]
[null,"Pumpkin Seeds 12oz, #3740040",{"$f":"IF(I170=0,\"\",#REF!*I170)","v":""},"OZ"]
[null,"Pure Corn Oil, #5328703",{"$f":"IF(I173=0,\"\",#REF!*I173)","v":""},"GAL"]
[null,"Quinoa Tri color, #8322735",{"$f":"IF(I174=0,\"\",#REF!*I174)","v":""},"LB"]
[null,"Red Wine Vinegar, AFMIS",null,"GAL"]
[null,"Rice Paper 10ea, #21352",null,"PK"]
[null,"Rolled Oats, AFMIS",null,"LB"]
[null,"Rosemary, Dry, #760652",null,"CO"]
[null,"Saffron, #5362652",null,"OZ"]
[null,"Salad Oil, AFMIS",null,"GAL"]
[null,"Sesame Oil 60oz, #8330219",{"$f":"IF(I176=0,\"\",#REF!*I176)","v":""},"GAL"]
[null,"Soba Noodles Buckwheat, #1348234",null,"LB"]
[null,"Soy Milk",{"$f":"IF(I182=0,\"\",#REF!*I182)","v":""},"GAL"]
[null,"Sriracha Sauce, AFMIS",null,"Co"]
[null,"Star Anise whole, #2825818",null,"OZ"]
[null,"Strawberry Preserves, #3016714",null,"CO"]
[null,"Sugar, Brown, AFMIS",{"$f":"IF(I183=0,\"\",#REF!*I183)","v":""},"LB"]
[null,"Sugar, Granulated, AFMIS",{"$f":"IF(I184=0,\"\",#REF!*I184)","v":""},"LB"]
[null,"Sunflower Oil frying, #8892127",null,"OZ"]
[null,"Syrup, Maple, AFMIS",null,"OZ"]
[null,"Tarragon Leaves Dry, #760538",null,"CO"]
[null,"Thai Curry Paste, #5954039green, #4640259red",null,"CO"]
[null,"Tomato Paste, AFMIS",null,"OZ"]
[null,"Turmeric ground, #760769",null,"CO"]
[null,"Vanilla Bean, #1491489",null,"EA"]
[null,"Vinegar, Distilled, AFMIS",null,"GAL"]
[null,"Walnut Oil 1lt, #16352",{"$f":"IF(I192=0,\"\",#REF!*I192)","v":""},"OZ"]
[null,"Walnuts, Shelled, #8885550",{"$f":"IF(I200=0,\"\",#REF!*I200)","v":""},"LB"]
[null,"Wasabi, #5222348",{"$f":"IF(I204=0,\"\",#REF!*I204)","v":""},"CO"]
[null,"White Balsamic Vinegar 1gal, #3179454",null,"GAL"]
[null,"White Wine Vinegar 1gal, #8196115",null,"GAL"]
[null,"Whole Fennel Seeds, #761056",null,"LB"]
[null,"Worcestershire Sauce, AFMIS",null,"OZ"]
[null,"Yeast, AFMIS",null,"CO"]
[null,"Yellow Mustard Seed, #7891369",null,"Co"]
[null," Produce"]
[null,"Avocado, Whole, AFMIS",{"$f":"IF(I205=0,\"\",#REF!*I205)","v":""},"LB"]
[null,"Arugula, baby, #9546982",null,"LB"]
[null,"Asparagus, AFMIS",null,"LB"]
[null,"Baby Kale, #4472840",null,"LB"]
[null,"Baby Spinach flat, #4425690 ",{"$f":"IF(I206=0,\"\",#REF!*I206)","v":""},"LB"]
[null,"Basil Fresh, AFMIS",{"$f":"IF(I211=0,\"\",#REF!*I211)","v":""},"LB"]
[null,"Beets Red, AFMIS",null,"LB"]
[null,"Belgian Endive, #5011960",null,"LB"]
[null,"Blackberries, #8020588",{"$f":"IF(I212=0,\"\",#REF!*I212)","v":""},"LB"]
[null,"Blood Orange, #7509821",null,"LB"]
[null,"Blueberries, AFMIS",null,"LB"]
[null,"Bok Choy, #7011851 ",{"$f":"IF(I213=0,\"\",#REF!*I213)","v":""},"LB"]
[null,"Broccoli, AFMIS",{"$f":"IF(I215=0,\"\",#REF!*I215)","v":""},"LB"]
[null,"Butternut Squash, AFMIS",{"$f":"IF(I217=0,\"\",#REF!*I217)","v":""},"LB"]
[null,"Mushroom medium, AFMIS ",{"$f":"IF(I218=0,\"\",#REF!*I218)","v":""},"LB"]
[null,"Cabbage, Napa, AFMIS",{"$f":"IF(I219=0,\"\",#REF!*I219)","v":""},"LB"]
[null,"Calendula Edible Flower (50ea)  /  #5647896",{"$f":"IF(I220=0,\"\",#REF!*I220)","v":""},"CO"]
[null,"Cantaloupe, AFMIS",{"$f":"IF(I221=0,\"\",#REF!*I221)","v":""},"LB"]
[null,"Carrots, Jumbo, AFMIS",{"$f":"IF(I224=0,\"\",#REF!*I224)","v":""},"LB"]
[null,"Cauliflower, AFMIS",{"$f":"IF(I226=0,\"\",#REF!*I226)","v":""},"LB"]
[null,"Celery, AFMIS",{"$f":"IF(I227=0,\"\",#REF!*I227)","v":""},"LB"]
[null,"Spinach, AFMIS",{"$f":"IF(I228=0,\"\",#REF!*I228)","v":""},"LB"]
[null,"Cherry Tomato, AFMIS",null,"LB"]
[null,"Chervil, #4977278",null,"OZ"]
[null,"Japanese Eggplant, #4430450",{"$f":"IF(I229=0,\"\",#REF!*I229)","v":""},"LB"]
[null,"Chives, AFMIS",null,"LB"]
[null,"Cilantro Fresh, AFMIS",{"$f":"IF(I231=0,\"\",#REF!*I231)","v":""},"LB"]
[null,"Cranberries fresh, #9010505",{"$f":"IF(I236=0,\"\",#REF!*I236)","v":""},"LB"]
[null,"Dill Fresh, AFMIS",{"$f":"IF(I237=0,\"\",#REF!*I237)","v":""},"LB"]
[null,"Eggplant, AFMIS",{"$f":"IF(I238=0,\"\",#REF!*I238)","v":""},"LB"]
[null,"Endive Red, #3015435",null,"LB"]
[null,"English Cucumber, #8304586",{"$f":"IF(I239=0,\"\",#REF!*I239)","v":""},"LB"]
[null,"Flower, Borage Blossom (100ea)  /  #4981916",null,"CO"]
[null,"Flower, Micro Orchid (100ea)  /  #5648787",null,"CO"]
[null,"Fresh Fennel, #9111931",null,"LB"]
[null,"Fresh Rosemary, AFMIS",null,"LB"]
[null,"Fresh Thyme, AFMIS",{"$f":"IF(I240=0,\"\",#REF!*I240)","v":""},"LB"]
[null,"Frisee, #8030330",{"$f":"IF(I241=0,\"\",#REF!*I241)","v":""},"LB"]
[null,"Garlic Cloves, AFMIS",{"$f":"IF(I242=0,\"\",#REF!*I242)","v":""},"LB"]
[null,"Ginger Root, AFMIS",{"$f":"IF(I243=0,\"\",#REF!*I243)","v":""},"LB"]
[null,"Golden Apples, AFMIS",null,"LB"]
[null,"Granny Smith Apples, AFMIS ",{"$f":"IF(I244=0,\"\",#REF!*I244)","v":""},"LB"]
[null,"Grape Tomato, AFMIS",{"$f":"IF(I245=0,\"\",#REF!*I245)","v":""},"LB"]
[null,"Green Onion, AFMIS",{"$f":"IF(I247=0,\"\",#REF!*I247)","v":""},"LB"]
[null,"Heirloom Tomatoes, #6292155",null,"LB"]
[null,"Honeydew Melon, AFMIS ",{"$f":"IF(I250=0,\"\",#REF!*I250)","v":""},"LB"]
[null,"Iceberg Lettuce, AFMIS ",null,"LB"]
[null,"Idaho Russet, Baking Potato, AFMIS",{"$f":"IF(I251=0,\"\",#REF!*I251)","v":""},"LB"]
[null,"Jalapeno Pepper, #6010482",{"$f":"IF(I254=0,\"\",#REF!*I254)","v":""},"LB"]
[null,"Jicama, #2037315",null,"LB"]
[null,"Kiwi, AFMIS",{"$f":"IF(I264=0,\"\",#REF!*I264)","v":""},"LB"]
[null,"Green Pepper, AFMIS ",{"$f":"IF(I265=0,\"\",#REF!*I265)","v":""},"LB"]
[null,"Leeks, AFMIS",null,"LB"]
[null,"Lemons, AFMIS",null,"LB"]
[null,"Limes, AFMIS",{"$f":"IF(I266=0,\"\",#REF!*I266)","v":""},"LB"]
[null,"Mango, AFMIS",null,"LB"]
[null,"Micro Green Watercress (8oz)  /  #5430160",null,"CO"]
[null,"Microgreen Amaranth (8oz)  /  #1521376",null,"CO"]
[null,"Microgreen Beet Red Bulls Blood (8oz)  /  #3430105",null,"CO"]
[null,"Microgreen Chefs Blend (4oz)  /  #7430150",null,"CO"]
[null,"Microgreen Chive (8oz)  /  #9430109",null,"CO"]
[]
[null,null,{"$f":"IF(I267=0,\"\",#REF!*I267)","v":""},"LB"]
[null,"Microgreens Basil (8oz)  /  #8430134",null,"CO"]
[null,"Mushroom, Beech, #1367291",{"$f":"IF(I268=0,\"\",#REF!*I268)","v":""},"LB"]
[null,"Mushroom, Oyster, #1069053",{"$f":"IF(I269=0,\"\",#REF!*I269)","v":""},"LB"]
[null,"Mushroom, Portabella Cap, #8252660",{"$f":"IF(I270=0,\"\",#REF!*I270)","v":""},"LB"]
[null,"Mushroom, Shitake, #3011988",{"$f":"IF(I273=0,\"\",#REF!*I273)","v":""},"LB"]
[null,"Oranges, AFMIS ",{"$f":"IF(I275=0,\"\",#REF!*I275)","v":""},"LB"]
[null,"Papaya, AFMIS",{"$f":"IF(I276=0,\"\",#REF!*I276)","v":""},"LB"]
[null,"Parsley Curly, AFMIS",null,"LB"]
[null,"Parsnip, #1384809",null,"LB"]
[null,"Peaches, #7034143",null,"LB"]
[null,"Pears, AFMIS",{"$f":"IF(I277=0,\"\",#REF!*I277)","v":""},"LB"]
[null,"Peas Frozen, AFMIS",null,"LB"]
[null,"Baby Carrots, AFMIS ",{"$f":"IF(I279=0,\"\",#REF!*I279)","v":""},"LB"]
[null,"Pineapple, AFMIS ",{"$f":"IF(I280=0,\"\",#REF!*I280)","v":""},"LB"]
[null,"Plum Tomatoes, #4732525",{"$f":"IF(I282=0,\"\",#REF!*I282)","v":""},"LB"]
[null,"Radicchio, #1037340 ",null,"LB"]
[null,"Radish, AFMIS",{"$f":"IF(I283=0,\"\",#REF!*I283)","v":""},"LB"]
[null,"Rainbow Carrots, #254987",{"$f":"IF(I284=0,\"\",#REF!*I284)","v":""},"LB"]
[null,"Raspberries, AFMIS ",null,"LB"]
[null,"Red Apple, AFMIS",{"$f":"IF(I285=0,\"\",#REF!*I285)","v":""},"LB"]
[null,"Red Bell Pepper, AFMIS ",{"$f":"IF(I286=0,\"\",#REF!*I286)","v":""},"LB"]
[null,"Red Bliss A Potato, AFMIS",{"$f":"IF(I287=0,\"\",#REF!*I287)","v":""},"LB"]
[null,"Red Cabbage, AFMIS ",{"$f":"IF(I289=0,\"\",#REF!*I289)","v":""},"LB"]
[null,"Red Grapes Seedless, AFMIS ",{"$f":"IF(I290=0,\"\",#REF!*I290)","v":""},"LB"]
[null,"Red Onion, AFMIS",{"$f":"IF(I294=0,\"\",#REF!*I294)","v":""},"LB"]
[null,"Rhubarb, #8034118",null,"LB"]
[null,"Romaine Lettuce, AFMIS",{"$f":"IF(I295=0,\"\",#REF!*I295)","v":""},"LB"]
[null,"Ruby Red Grapefruit, AFMIS",null,"LB"]
[null,"Shallots fresh, #7025216",null,"LB"]
[null,"Strawberry, AFMIS",null,"LB"]
[null,"Sugar Snap Peas, #2019610",{"$f":"IF(I299=0,\"\",#REF!*I299)","v":""},"LB"]
[null,"Sweet Potato, AFMIS",{"$f":"IF(I302=0,\"\",#REF!*I302)","v":""},"LB"]
[null,"Tarragon, Fresh, AFMIS",{"$f":"IF(I303=0,\"\",#REF!*I303)","v":""},"LB"]
[null,"Tomatillo fresh, #6010755",null,"LB"]
[null,"Tomato Regular, AFMIS",null,"LB"]
[null,"Turnips, AFMIS",null,"LB"]
[null,"Watermelon, AFMIS",{"$f":"IF(I305=0,\"\",#REF!*I305)","v":""},"EA"]
[null,"Watermelon Radish, #1264180",null,"LB"]
[null,"White Potato, AFMIS",{"$f":"IF(I306=0,\"\",#REF!*I306)","v":""},"LB"]
[null,"Yellow Onion, AFMIS",{"$f":"IF(I307=0,\"\",#REF!*I307)","v":""},"LB"]
[null,"Yellow Pepper, AFMIS",{"$f":"IF(I309=0,\"\",#REF!*I309)","v":""},"LB"]
[null,"Yellow Squash Medium, AFMIS",null,"LB"]
[null,"Yukon Gold Potato, AFMIS",{"$f":"IF(I310=0,\"\",#REF!*I310)","v":""},"LB"]
[null,"Zucchini, Medium, Fancy, AFMIS",null,"LB"]
[null,"Dairy"]
[null,"Asiago Cheese block, #3588589 ",{"$f":"IF(I312=0,\"\",#REF!*I312)","v":""},"LB"]
[null,"Bleu Cheese wheel, #4420741",{"$f":"IF(I314=0,\"\",#REF!*I314)","v":""},"LB"]
[null,"Butter Solids, Salted, AFMIS",null,"LB"]
[null,"Butter, Unsalted, #5868153",{"$f":"IF(I315=0,\"\",#REF!*I315)","v":""},"LB"]
[null,"Buttermilk, #5353909",{"$f":"IF(I316=0,\"\",#REF!*I316)","v":""},"GAL"]
[null,"Cheddar Cheese block, AFMIS",{"$f":"IF(I317=0,\"\",#REF!*I317)","v":""},"LB"]
[null,"Cream Cheese, AFMIS",{"$f":"IF(I319=0,\"\",#REF!*I319)","v":""},"LB"]
[null,"Egg Beaters, #9608075",{"$f":"IF(I320=0,\"\",#REF!*I320)","v":""},"Co"]
[null,"Eggs, AFMIS",null,"DZ"]
[null,"Feta Cheese, AFMIS",{"$f":"IF(I321=0,\"\",#REF!*I321)","v":""},"LB"]
[null,"Gorgonzola Cheese wheel, #4382420",{"$f":"IF(I322=0,\"\",#REF!*I322)","v":""},"LB"]
[null,"Gouda Cheese log, #3353919 ",{"$f":"IF(I323=0,\"\",#REF!*I323)","v":""},"LB"]
[null,"Heavy Cream, AFMIS",{"$f":"IF(I325=0,\"\",#REF!*I325)","v":""},"Co"]
[null,"Margarine, AFMIS",{"$f":"IF(I326=0,\"\",#REF!*I326)","v":""},"LB"]
[null,"Mascarpone Cheese 16oz co, #8352809",{"$f":"IF(I327=0,\"\",#REF!*I327)","v":""},"LB"]
[null,"Milk - Whole, AFMIS",{"$f":"IF(I328=0,\"\",#REF!*I328)","v":""},"Gal"]
[null,"Monterey Jack Cheese block, #6488092",{"$f":"IF(I329=0,\"\",#REF!*I329)","v":""},"LB"]
[null,"Mozzarella Cheese log 1lb, #2657328",{"$f":"IF(I330=0,\"\",#REF!*I330)","v":""},"LB"]
[null,"Muenster Cheese block, #9814900",{"$f":"IF(I331=0,\"\",#REF!*I331)","v":""},"LB"]
[null,"Parmesan wheel, #3604006",{"$f":"IF(I332=0,\"\",#REF!*I332)","v":""},"LB"]
[null,"Plain Yogurt, AFMIS",{"$f":"IF(I333=0,\"\",#REF!*I333)","v":""},"Co"]
[null,"Provolone Cheese smoked block, #7018306 ",null,"LB"]
[null,"Ricotta Cheese, #1332550",{"$f":"IF(I334=0,\"\",#REF!*I334)","v":""},"LB"]
[null,"Sharp Cheddar Cheese block,, AFMIS",null,"LB"]
[null,"Sour Cream, AFMIS",null,"Co"]

{"sheet":"Day 14 Practical ","index":1,"n_rows":244,"n_cols":17,"rows_kept":244,"cut":false,"hidden":true,"merged":[[0,0,0,8],[1,0,1,8],[7,7,7,8],[8,13,8,16],[9,13,9,14],[9,15,9,16],[2,2,2,3],[4,2,4,3]]}
["PROFILE REQUISITION:"]
["Please submit order 3 business days in advance"]
[null,"Class:","A la Carte, DAY 14 (Practical)",null,null,"Delivery Date:"]
[]
[null,"Req'd By:",null,null,null,"Submitted:"]
[]
[null,"Multi:",1,null,null,null,"6 Trays/students Only"]
[null,null,null,null,null,null,null,"Do Not Use"]
["#","CODE","CAT","INGREDIENT","AMT","U/M","SPECIFICATIONS","ORD","REC",null,1,null,null,"Administrator Only"]
[1,"Alch",null,"Wine, white, dry",{"$f":"IF(K10=0,\"\",$C$7*K10)","v":1},{"$f":"IF(L10=0,\"\",L10)","v":"Cup"},null,null,null,null,1,"Cup",null,"Units of Measure List",null,"Ordering Codes"]
[2,"Bake",null,"Bread, pullman, unsliced",0.5,"Loaf",null,null,null,null,0.5,"Loaf",null,"Bag","Bag","Dairy","Dairy, eggs"]
[3,"Dairy",null,"Butter, whole, unsalted",2.5,"LB",null,null,null,null,2.5,"LB",null,"Bch","Bunch","Groc","Grocery (Dry, Canned, Spices, etc)"]
[4,"Dairy",null,"Eggs, large",1,"Flat",null,null,null,null,1,"Flat",null,"Bskt","Basket","Fish","Fish and Seafood"]
[5,"Dairy",null,"Heavy cream",2,"Qt",null,null,null,null,2,"Qt",null,"Bx","Box","Prod","Produce"]
[6,"Fish",null,"Flounder, fillet",1,"LB",null,null,null,null,1,"LB",null,"Can","Can","Meat","Meat"]
[7,"Fish",null,"Mahimahi, center cut (no tails)",12,"Ozw",null,null,null,null,12,"Ozw",null,"Cup","Cup","Bake","Bread and Baked Goods"]
[8,"Fish",null,"Salmon, fillet",1,"LB",null,null,null,null,1,"LB",null,"Crtn","Carton","Alch","Alcoholic Beverages"]
[9,"Groc",null,"Flour, 00 all-purpose",0.5,"LB",null,null,null,null,0.5,"LB",null,"Cs","Case","Spec","Specialty Items"]
[10,"Groc",null,"Flour, bread",1,"LB",null,null,null,null,1,"LB",null,"EA","Each"]
[11,"Groc",null,"lentils, french green (le puy)",6,"Ozw",null,null,null,null,6,"Ozw",null,"Flat","Flat"]
[12,"Groc",null,"Nuts, almonds, slivered",0.5,"LB",null,null,null,null,0.5,"LB",null,"Gal","Gallon"]
[13,"Groc",null,"Oil, olive, pure",0.5,"Qt",null,null,null,null,0.5,"Qt",null,"Gr","Gram"]
[14,"Groc",null,"Oil, vegetable",0.5,"Gal",null,null,null,null,0.5,"Gal",null,"Hd","Head"]
[15,"Groc",null,"Red currant jelly",1,"Cup",null,null,null,null,1,"Cup",null,"Kilo","Kilo"]
[16,"Groc",null,"Rice, long grain white",8,"Ozw",null,null,null,null,8,"Ozw",null,"LB","Pound"]
[17,"Groc",null,"Salt, kosher",1,"Bx",null,null,null,null,1,"Bx",null,"Loaf","Loaf"]
[18,"Groc",null,"Spice, bayleaf",1,"Ozw",null,null,null,null,1,"Ozw",null,"Ozv","Fluid Ounce (Volume)"]
[19,"Groc",null,"Spice, peppercorn, black",1,"Ozw",null,null,null,null,1,"Ozw",null,"Ozw","Ounce (wright)"]
[20,"Meat",null,"Bacon, slice",2,"Ozw",null,null,null,null,2,"Ozw",null,"Pk","Pack"]
[21,"Meat",null,"Beef, Shank, Ground",24,"Ozw",null,null,null,null,24,"Ozw",null,"Pt","Pint"]
[22,"Meat",null,"Beef, Shank, large chunk or 1\" cubes",12,"Ozw",null,null,null,null,12,"Ozw",null,"Qt","Quart"]
[23,"Meat",null,"Chicken, airline breast 6 ozw. Avg.",2,"EA",null,null,null,null,2,"EA",null,"Tbl","Tablespoon"]
[24,"Meat",null,"Chicken, breast, ground, course",12,"Ozw",null,null,null,null,12,"Ozw",null,"Tray","Tray"]
[25,"Meat",null,"Chicken, Whole 2.5# avg",1,"EA",null,null,null,null,1,"EA",null,"tsp","Teaspoon"]
[26,"Meat",null,"Ham hock",2,"Ozw",null,null,null,null,2,"Ozw"]
[27,"Prod",null,"Apples, granny smith",0.5,"LB",null,null,null,null,0.5,"LB"]
[28,"Prod",null,"Beets, Red",6,"Ozw",null,null,null,null,6,"Ozw"]
[29,"Prod",null,"Broccoli, head",1,"EA",null,null,null,null,1,"EA"]
[30,"Prod",null,"cabbage, red",3,"LB",null,null,null,null,3,"LB"]
[31,"Prod",null,"Carrots, cello",3,"LB",null,null,null,null,3,"LB"]
[32,"Prod",null,"Cauliflower, whole, small",0.5,"EA",null,null,null,null,0.5,"EA"]
[33,"Prod",null,"Celery",{"$f":"IF(K42=0,\"\",$C$7*K42)","v":2},{"$f":"IF(L42=0,\"\",L42)","v":"LB"},null,null,null,null,2,"LB"]
[34,"Prod",null,"Garlic, whole",4,"Hd",null,null,null,null,4,"Hd"]
[35,"Prod",null,"Green Beans",9,"Ozw",null,null,null,null,9,"Ozw"]
[36,"Prod",null,"Herbs, chervil",1,"Bch",null,null,null,null,1,"Bch"]
[37,"Prod",null,"Herbs, chives",1,"Bch",null,null,null,null,1,"Bch"]
[38,"Prod",null,"Herbs, parsley",1,"Bch",null,null,null,null,1,"Bch"]
[39,"Prod",null,"Herbs, rosemary",1,"Bch",null,null,null,null,1,"Bch"]
[40,"Prod",null,"Herbs, tarragon",1,"Bch",null,null,null,null,1,"Bch"]
[41,"Prod",null,"Herbs, thyme",1,"Bch",null,null,null,null,1,"Bch"]
[42,"Prod",null,"Leeks",2,"LB",null,null,null,null,2,"LB"]
[43,"Prod",null,"Lemons",4,"EA",null,null,null,null,4,"EA"]
[44,"Prod",null,"Mushroom, crimini",2,"LB",null,null,null,null,2,"LB"]
[45,"Prod",null,"Onions, spanish",5,"LB",null,null,null,null,5,"LB"]
[46,"Prod",null,"Peas, green, fresh",1,"LB",null,null,null,null,1,"LB"]
[47,"Prod",null,"pineapple, whole, gold",1,"EA",null,null,null,null,1,"EA"]
[48,"Prod",null,"Potato, Chef",2,"LB",null,null,null,null,2,"LB"]
[49,"Prod",null,"Potato, red, b size",4,"LB",null,null,null,null,4,"LB"]
[50,"Prod",null,"Potato, russet",1.5,"LB",null,null,null,null,1.5,"LB"]
[51,"Prod",null,"Shallots",1,"LB",null,null,null,null,1,"LB"]
[52,"Prod",null,"Spinach, bunched",1,"LB",null,null,null,null,1,"LB"]
[53,"Prod",null,"Spinach, cello, baby",0.5,"Bag",null,null,null,null,0.5,"Bag"]
[54,"Prod",null,"squash, zucchini",1,"EA",null,null,null,null,1,"EA"]
[55,"Prod",null,"Tomato, roma, RIPE",6,"EA",null,null,null,null,6,"EA"]
[56,"Prod",null,"Turnip, white",1,"LB",null,null,null,null,1,"LB"]
[57,"Prod",null,"Turnip, yellow, rutabega",0.5,"LB",null,null,null,null,0.5,"LB"]
[58,"Spec",null,"Duck fat or lard",1,"Cup",null,null,null,null,1,"Cup"]
[59,"Spec",null,"Stock, brown veal",1,"Gal",null,null,null,null,1,"Gal"]
[60,"Spec",null,"Stock, chicken",2,"Gal",null,null,null,null,2,"Gal"]
[61,"Spec",null,"Stock, fish",0.5,"Gal",null,null,null,null,0.5,"Gal"]
[62,"Spec",null,"Stock, white beef",2,"Gal",null,null,null,null,2,"Gal"]
[63,null,null,null,{"$f":"IF(K72=0,\"\",$C$7*K72)","v":""},{"$f":"IF(L72=0,\"\",L72)","v":""}]
[64,null,null,null,"",""]
[65,null,null,null,{"$f":"IF(K74=0,\"\",$C$7*K74)","v":""},""]
[66,null,null,null,"",{"$f":"IF(L75=0,\"\",L75)","v":""}]
[67,null,null,null,"",""]
[68,null,null,null,"",""]
[69,null,null,null,"",""]
[70,null,null,null,"",""]
[71,null,null,null,"",""]
[72,null,null,null,"",""]
[73,null,null,null,"",""]
[74,null,null,null,"",""]
[75,null,null,null,"",""]
[76,null,null,null,"",""]
[77,null,null,null,"",""]
[78,null,null,null,{"$f":"IF(K87=0,\"\",$C$7*K87)","v":""},""]
[79,null,null,null,{"$f":"IF(K88=0,\"\",$C$7*K88)","v":""},""]
[80,null,null,null,"",""]
[81,null,null,null,"",""]
[82,null,null,null,"",""]
[83,null,null,null,"",""]
[84,null,null,null,"",""]
[85,null,null,null,"",""]
[86,null,null,null,"",""]
[87,null,null,null,"",""]
[88,null,null,null,"",""]
[89,null,null,null,"",""]
[90,null,null,null,"",""]
[91,null,null,null,"",""]
[92,null,null,null,"",""]
[93,null,null,null,"",""]
[94,null,null,null,"",""]
[95,null,null,null,"",""]
[96,null,null,null,"",""]
[97,null,null,null,"",""]
[98,null,null,null,"",""]
[99,null,null,null,"",""]
[100,null,null,null,"",""]
[101,null,null,null,"",""]
[102,null,null,null,"",""]
[103,null,null,null,"",""]
[104,null,null,null,"",""]
[105,null,null,null,"",""]
[106,null,null,null,"",""]
[107,null,null,null,"",""]
[108,null,null,null,"",""]
[109,null,null,null,"",""]
[110,null,null,null,"",""]
[111,null,null,null,"",""]
[112,null,null,null,"",""]
[113,null,null,null,"",""]
[114,null,null,null,"",""]
[115,null,null,null,"",""]
[116,null,null,null,"",""]
[117,null,null,null,"",""]
[118,null,null,null,"",""]
[119,null,null,null,"",""]
[120,null,null,null,"",""]
[121,null,null,null,"",""]
[122,null,null,null,"",""]
[123,null,null,null,"",""]
[124,null,null,null,"",""]
[125,null,null,null,"",""]
[126,null,null,null,"",""]
[127,null,null,null,"",""]
[128,null,null,null,"",""]
[129,null,null,null,"",""]
[130,null,null,null,"",{"$f":"IF(L139=0,\"\",L139)","v":""}]
[131,null,null,null,"",""]
[132,null,null,null,"",""]
[133,null,null,null,"",""]
[134,null,null,null,"",""]
[135,null,null,null,"",""]
[136,null,null,null,"",""]
[137,null,null,null,"",""]
[138,null,null,null,"",""]
[139,null,null,null,"",""]
[140,null,null,null,"",""]
[141,null,null,null,"",""]
[142,null,null,null,"",""]
[143,null,null,null,{"$f":"IF(K152=0,\"\",$C$7*K152)","v":""},""]
[144,null,null,null,"",""]
[145,null,null,null,"",""]
[146,null,null,null,"",""]
[147,null,null,null,"",""]
[148,null,null,null,"",""]
[149,null,null,null,"",""]
[150,null,null,null,"",""]
[151,null,null,null,"",""]
[152,null,null,null,"",""]
[153,null,null,null,"",""]
[154,null,null,null,"",""]
[155,null,null,null,"",""]
[156,null,null,null,"",""]
[157,null,null,null,"",""]
[158,null,null,null,"",""]
[159,null,null,null,"",""]
[160,null,null,null,"",""]
[161,null,null,null,"",""]
[162,null,null,null,"",""]
[163,null,null,null,"",""]
[164,null,null,null,"",""]
[165,null,null,null,"",""]
[166,null,null,null,"",""]
[167,null,null,null,"",""]
[168,null,null,null,"",""]
[169,null,null,null,"",""]
[170,null,null,null,"",""]
[171,null,null,null,"",""]
[172,null,null,null,"",""]
[173,null,null,null,"",""]
[174,null,null,null,"",""]
[175,null,null,null,"",""]
[176,null,null,null,"",""]
[177,null,null,null,"",""]
[178,null,null,null,"",""]
[179,null,null,null,"",""]
[180,null,null,null,"",""]
[181,null,null,null,"",""]
[182,null,null,null,"",""]
[183,null,null,null,"",""]
[184,null,null,null,"",""]
[185,null,null,null,"",""]
[186,null,null,null,"",""]
[187,null,null,null,"",""]
[188,null,null,null,"",""]
[189,null,null,null,"",""]
[190,null,null,null,"",""]
[191,null,null,null,"",""]
[192,null,null,null,"",""]
[193,null,null,null,"",""]
[194,null,null,null,"",{"$f":"IF(L203=0,\"\",L203)","v":""}]
[195,null,null,null,"",""]
[196,null,null,null,"",""]
[197,null,null,null,"",""]
[198,null,null,null,"",""]
[199,null,null,null,"",""]
[200,null,null,null,"",""]
[201,null,null,null,"",""]
[202,null,null,null,"",""]
[203,null,null,null,"",""]
[204,null,null,null,"",""]
[205,null,null,null,"",""]
[206,null,null,null,"",""]
[207,null,null,null,{"$f":"IF(K216=0,\"\",$C$7*K216)","v":""},""]
[208,null,null,null,"",""]
[209,null,null,null,"",""]
[210,null,null,null,"",""]
[211,null,null,null,"",""]
[212,null,null,null,"",""]
[213,null,null,null,"",""]
[214,null,null,null,"",""]
[215,null,null,null,"",""]
[216,null,null,null,"",""]
[217,null,null,null,"",""]
[218,null,null,null,"",""]
[219,null,null,null,"",""]
[220,null,null,null,"",""]
[221,null,null,null,"",""]
[222,null,null,null,"",""]
[223,null,null,null,"",""]
[224,null,null,null,"",""]
[225,null,null,null,"",""]
[226,null,null,null,"",""]
[227,null,null,null,"",""]
[228,null,null,null,"",""]
[229,null,null,null,"",""]
[230,null,null,null,"",""]
[231,null,null,null,"",""]
[232,null,null,null,"",""]
[233,null,null,null,"",""]
[234,null,null,null,"",""]
[235,null,null,null,"",""]